bitfinex-derivatives/quotes_ETHF0:USTF0_20260201
["timestamp","ask_amount","ask_price","bid_price","bid_amount"]
[1769972079294,2.31723118,2345.5,2344.4,2.43192761]
[1769972079501,2.53063118,2345.2,2344.0,2.43192761]
[1769972086704,2.29697307,2344.9,2343.7,6.19909451]
[1769972086909,2.29697307,2344.9,2343.7,2.2952973]
[1769972087207,0.21342,2345.0,2343.7,2.2952973]
[1769972087409,2.29697307,2345.0,2343.7,2.2952973]
[1769972087710,2.29697307,2345.3,2343.7,2.2952973]
[1769972088206,8.61301987,2345.3,2343.7,2.2952973]
[1769972088705,2.29697307,2345.2,2343.7,2.2952973]
[1769972089205,2.51037307,2345.2,2343.7,2.2952973]
[1769972089412,2.51037307,2345.2,2343.8,5.8122973]
[1769972089812,2.51037307,2345.2,2343.9,2.2952973]
[1769972091911,8.82641987,2345.2,2343.9,2.2952973]
[1769972092107,6.5294468,2345.2,2343.9,2.2952973]
[1769972092314,0.2134,2345.2,2343.9,2.2952973]
[1769972092714,2.29697307,2345.5,2344.2,2.2952973]
[1769972092909,6.3160468,2345.6,2344.6,2.2952973]
[1769972093110,0.27100932,2345.7,2344.8,2.2952973]
[1769972093715,0.27100932,2345.7,2344.8,2.29853011]
[1769972094213,7.82403089,2346.2,2345.0,2.2952973]
[1769972094214,0.21331,2346.2,2345.0,2.2952973]
[1769972094806,2.51028307,2346.2,2345.0,2.2952973]
[1769972096716,2.29697307,2346.0,2345.0,2.2952973]
[1769972098312,0.21332,2346.1,2345.0,2.2952973]
[1769972100323,5.03822336,2346.2,2345.0,2.2952973]
[1769972100823,2.51029307,2346.1,2345.0,2.2952973]
[1769972101024,2.51030307,2346.0,2344.8,2.29853011]
[1769972101324,2.29697307,2345.5,2344.8,0.00323281]
[1769972101823,2.51039307,2345.0,2343.8,2.2952973]
[1769972102018,0.21342,2345.0,2343.8,2.2952973]
[1769972102226,5.03822336,2345.3,2343.9,2.2952973]
[1769972102421,5.03822336,2345.5,2344.3,2.2952973]
[1769972102622,5.03822336,2345.8,2344.7,2.2952973]
[1769972102817,5.03822336,2346.0,2344.9,2.2952973]
[1769972103019,5.03822336,2346.0,2345.0,2.2952973]
[1769972103224,5.03822336,2345.9,2345.0,2.2952973]
[1769972105016,2.29697307,2345.8,2344.7,2.2952973]
[1769972105321,2.29697307,2345.7,2344.7,2.2952973]
[1769972105523,2.29697307,2345.6,2344.7,2.2952973]
[1769972105923,2.29697307,2345.6,2344.3,2.2952973]
[1769972106122,2.29697307,2345.3,2344.3,2.2952973]
[1769972106524,2.51036307,2345.3,2344.3,2.2952973]
[1769972106827,7.33519643,2345.2,2344.2,0.00457606]
[1769972107129,2.51038307,2345.1,2344.2,0.00457606]
[1769972107428,2.29697307,2345.0,2344.2,0.00457606]
[1769972108122,5.03822336,2345.3,2344.3,2.2524576]
[1769972108326,5.03822336,2345.3,2344.2,2.62769679]
[1769972108327,0.21336,2345.7,2344.7,2.2524576]
[1769972109720,2.36879617,2345.9,2344.7,2.2524576]
[1769972109928,6.3160468,2346.0,2344.7,2.2524576]
[1769972110124,8.68484297,2346.2,2344.7,2.2524576]
[1769972110922,2.36879617,2345.8,2344.7,2.2524576]
[1769972111531,2.36879617,2345.6,2344.7,2.2524576]
[1769972112331,0.21336,2345.7,2344.7,2.2524576]
[1769972112832,2.58215617,2345.7,2344.7,2.2524576]
[1769972113926,6.3160468,2345.9,2344.7,2.2524576]
[1769972114134,6.3160468,2346.1,2344.7,2.2524576]
[1769972114432,2.36879617,2346.1,2344.7,2.2524576]
[1769972114833,8.68484297,2346.1,2344.7,2.2524576]
[1769972115832,2.36879617,2346.0,2344.8,2.2524576]
[1769972117331,2.36879617,2345.9,2344.8,2.2524576]
[1769972120436,8.68484297,2345.9,2344.8,2.2524576]
[1769972120736,2.31518683,2345.8,2344.8,2.2524576]
[1769972123742,6.3160468,2345.9,2344.8,2.2524576]
[1769972123943,6.5293768,2346.0,2344.8,2.2524576]
[1769972124334,2.34361114,2345.6,2344.5,10.04334841]
[1769972124539,7.27623472,2345.2,2344.2,0.00457606]
[1769972124841,6.3160468,2344.7,2343.5,2.2524576]
[1769972125042,6.5295068,2344.6,2343.5,2.2524576]
[1769972125640,6.3160468,2344.8,2343.7,2.2524576]
[1769972125938,0.00457606,2344.8,2343.7,2.25637389]
[1769972128449,0.00457606,2344.8,2344.0,2.2524576]
[1769972133347,13.92676769,2345.5,2344.3,2.62312073]
[1769972133553,0.21336,2345.6,2344.4,2.2524576]
[1769972134450,0.21332,2346.1,2344.8,2.2524576]
[1769972134645,0.21332,2346.1,2344.9,2.2524576]
[1769972137247,3.62075941,2346.5,2345.2,2.2524576]
[1769972138243,6.5293168,2346.6,2345.2,2.2524576]
[1769972138451,0.21327,2346.6,2345.2,2.2524576]
[1769972139253,8.91862113,2347.0,2345.2,2.2524576]
[1769972139254,6.3160468,2347.0,2345.5,2.12965787]
[1769972139450,1.35792547,2346.9,2345.5,2.1329825]
[1769972141049,1.57117547,2346.9,2345.5,2.1329825]
[1769972141348,0.21325,2346.9,2345.5,2.1329825]
[1769972142052,2.503,2347.1,2345.5,2.3463525]
[1769972142747,6.3160468,2347.3,2345.5,2.3463525]
[1769972142953,0.3441569,2347.6,2345.5,2.3463525]
[1769972142954,7.7998211,2347.9,2346.4,2.12965787]
[1769972143247,1.4837743,2347.9,2346.5,2.12965787]
[1769972143550,6.5291968,2348.0,2346.5,2.12965787]
[1769972143745,1.7232995,2348.0,2346.8,2.12965787]
[1769972144249,7.8261963,2348.3,2346.8,2.12965787]
[1769972144445,7.8261963,2348.5,2346.8,2.12965787]
[1769972144650,1.5101495,2348.3,2346.8,2.12965787]
[1769972146252,0.21315,2348.0,2346.8,2.12965787]
[1769972146455,1.72513744,2348.0,2346.8,2.12965787]
[1769972148960,0.21315,2348.0,2346.8,2.12965787]
[1769972149155,4.27634688,2348.6,2347.1,2.47932204]
[1769972149659,0.21309,2348.6,2347.1,2.47932204]
[1769972149860,1.51771568,2348.5,2347.1,2.47932204]
[1769972150754,1.73082568,2348.4,2347.1,2.47932204]
[1769972153058,1.71556514,2347.0,2345.8,2.47932204]
[1769972153361,0.21319,2347.5,2346.0,2.47932204]
[1769972153560,0.21319,2347.5,2346.1,2.47932204]
[1769972153764,0.21319,2347.5,2346.2,2.47932204]
[1769972153962,1.71177675,2347.5,2346.2,2.47932204]
[1769972154957,1.71179675,2347.3,2346.2,2.47932204]
[1769972155162,0.21321,2347.3,2346.2,2.47932204]
[1769972158567,1.72509156,2347.2,2346.2,2.47932204]
[1769972159067,1.72510156,2347.1,2346.2,2.47932204]
[1769972159468,1.72572684,2346.9,2345.9,2.47932204]
[1769972160964,0.21328,2346.5,2345.6,2.47932204]
[1769972161165,0.21324,2347.0,2345.6,2.47932204]
[1769972162369,0.21327,2346.7,2345.6,2.47932204]
[1769972162769,1.70004023,2346.7,2345.6,2.47932204]
[1769972163175,0.21327,2346.7,2345.6,2.47932204]
[1769972163768,1.47240324,2347.2,2345.6,2.47932204]
[1769972164160,1.68562324,2347.2,2345.6,2.47932204]
[1769972164366,1.68563324,2347.1,2345.6,2.47932204]
[1769972167167,1.47240324,2347.1,2345.6,2.47932204]
[1769972167367,1.72139395,2346.9,2345.6,2.47932204]
[1769972167872,1.74039754,2346.7,2345.6,2.47932204]
[1769972171873,1.74509166,2346.5,2345.6,2.47932204]
[1769972172177,0.21331,2346.2,2345.5,0.00332463]
[1769972172576,1.74511166,2346.2,2345.5,0.00332463]
[1769972175269,6.3160468,2346.7,2345.5,0.00332463]
[1769972175270,1.74678348,2346.1,2345.5,0.00332463]
[1769972175468,1.74678348,2346.1,2345.2,3.839]
[1769972175669,0.21332,2346.1,2345.3,2.48249147]
[1769972176377,0.21664463,2346.1,2345.3,2.48755307]
[1769972179878,0.00332463,2346.1,2345.3,2.48755307]
[1769972180778,0.21328,2346.6,2345.3,2.48755307]
[1769972182774,1.50702734,2346.5,2345.3,2.48755307]
[1769972182973,1.50702734,2345.8,2344.6,2.48249147]
[1769972183177,0.21333,2346.0,2344.6,2.48249147]
[1769972183981,0.21663602,2346.0,2344.6,2.48692205]
[1769972185287,0.00330602,2346.0,2344.7,2.48249147]
[1769972187184,0.00330602,2346.0,2345.0,2.48249147]
[1769972187389,0.00330602,2346.0,2345.1,2.48249147]
[1769972202401,6.3160468,2346.1,2345.1,2.48249147]
[1769972203305,0.00175558,2346.1,2345.1,2.48249147]
[1769972207007,0.21335,2345.7,2344.9,2.39522477]
[1769972207302,2.45313908,2345.3,2344.6,0.00443058]
[1769972207511,2.66656908,2344.9,2344.6,5.8e-07]
[1769972207806,2.45313908,2344.8,2343.8,3.84]
[1769972208007,6.5294768,2344.9,2343.8,3.84]
[1769972208008,2.45313908,2344.6,2343.8,3.84]
[1769972208507,5.06794069,2344.5,2343.8,3.84]
[1769972208703,7.52107977,2344.5,2343.8,3.84535089]
[1769972208907,5.06794069,2344.5,2343.8,3.84535089]
[1769972209103,5.06794069,2344.6,2343.8,3.84535089]
[1769972209309,5.06794069,2344.6,2343.9,2.39522477]
[1769972209509,5.06794069,2344.7,2343.9,2.39522477]
[1769972209709,5.06794069,2344.8,2343.9,2.39522477]
[1769972210305,6.3160468,2345.0,2343.9,2.39522477]
[1769972210306,5.06794069,2345.0,2343.9,2.39522477]
[1769972210612,5.06794069,2345.2,2344.1,2.39522477]
[1769972210809,5.06794069,2345.5,2344.1,2.39522477]
[1769972211010,5.06794069,2345.4,2344.3,2.39522477]
[1769972211711,5.06794069,2345.5,2344.3,2.39522477]
[1769972212312,5.06794069,2345.6,2344.5,2.39522477]
[1769972214103,2.45313908,2345.5,2344.5,2.39522477]
[1769972214308,7.52107977,2345.5,2344.5,2.39522477]
[1769972215510,13.10674467,2346.1,2345.1,2.39522477]
[1769972215511,9.26574467,2346.1,2345.1,2.39522477]
[1769972215710,10.06385997,2346.5,2345.2,2.39522477]
[1769972215910,2.45313908,2346.5,2345.2,2.39522477]
[1769972216713,2.45633089,2346.5,2345.2,2.39522477]
[1769972217513,0.00319181,2346.5,2345.5,2.39522477]
[1769972217818,0.00319181,2346.5,2345.5,2.40008933]
[1769972219010,2.45633089,2346.5,2345.5,2.40008933]
[1769972219610,2.45633089,2346.5,2345.5,0.00486456]
[1769972219810,2.45633089,2346.5,2345.5,2.40008933]
[1769972220211,0.00319181,2346.5,2345.5,2.40008933]
[1769972221819,2.45633089,2346.5,2345.5,0.00486456]
[1769972222918,2.66961089,2346.5,2345.5,0.00486456]
[1769972223117,2.45313908,2346.4,2345.5,0.00486456]
[1769972223719,2.45313908,2345.9,2344.6,2.39522477]
[1769972223915,2.45313908,2345.8,2344.3,2.39522477]
[1769972224718,2.45313908,2345.8,2344.3,2.39964453]
[1769972229623,8.57985856,2345.6,2344.3,2.39964453]
[1769972229922,2.26381176,2345.5,2344.3,2.39964453]
[1769972230524,2.26381176,2345.4,2344.3,2.39964453]
[1769972231722,2.26381176,2345.4,2344.3,0.00441976]
[1769972232123,2.26381176,2345.3,2344.3,0.00441976]
[1769972233424,2.47720176,2345.3,2344.3,0.00441976]
[1769972239622,2.47720176,2345.3,2344.3,2.34081339]
[1769972239826,2.26381176,2345.6,2344.3,2.34081339]
[1769972240325,2.26381176,2345.5,2344.3,2.34081339]
[1769972240826,2.26381176,2345.5,2344.3,2.55429339]
[1769972241028,2.26381176,2345.7,2344.5,2.33639363]
[1769972241325,2.26381176,2345.1,2344.3,0.00441976]
[1769972241627,2.47722176,2345.1,2344.3,0.00441976]
[1769972241827,2.47724176,2344.9,2343.4,2.33639363]
[1769972242723,2.47724176,2344.9,2343.4,2.34053543]
[1769972247224,2.26381176,2344.9,2343.7,2.33639363]
[1769972247430,2.26381176,2345.2,2343.7,2.33639363]
[1769972248322,2.26381176,2345.1,2343.7,2.33639363]
[1769972251433,2.26381176,2345.0,2343.7,2.33639363]
[1769972253231,2.26381176,2344.9,2343.7,2.33639363]
[1769972257845,2.65348781,2344.8,2343.7,2.33639363]
[1769972258040,2.65680843,2344.8,2343.5,2.30549359]
[1769972258342,2.44004781,2344.7,2343.5,2.30549359]
[1769972258533,2.44004781,2344.5,2343.4,0.0041418]
[1769972258940,2.65350781,2344.5,2343.4,0.0041418]
[1769972259245,2.44004781,2344.4,2343.4,0.0041418]
[1769972265949,2.37565568,2344.3,2343.4,0.0041418]
[1769972266549,8.90518248,2344.3,2343.4,0.0041418]
[1769972266744,2.37565568,2344.2,2343.4,0.0041418]
[1769972268151,2.37565568,2343.9,2342.9,3.842]
[1769972268348,2.37565568,2343.9,2343.0,2.32517739]
[1769972269250,2.37565568,2343.9,2343.0,2.32866294]
[1769972270449,2.37565568,2344.2,2343.0,2.32866294]
[1769972271950,2.37565568,2344.2,2343.2,2.32517739]
[1769972275847,8.69170248,2344.2,2343.0,0.00348555]
[1769972276153,2.37565568,2343.5,2342.3,2.32517739]
[1769972276952,2.37565568,2343.7,2342.6,0.21363]
[1769972277253,2.37565568,2343.7,2342.7,2.32517739]
[1769972278154,2.37565568,2343.7,2342.8,2.32517739]
[1769972279355,2.37565568,2344.0,2342.8,2.53878739]
[1769972279955,8.69170248,2344.3,2343.0,2.32517739]
[1769972280256,2.37565568,2344.2,2343.0,2.32517739]
[1769972281454,2.37565568,2344.5,2343.1,2.32517739]
[1769972281660,2.37565568,2344.5,2343.1,2.53876739]
[1769972285258,2.37565568,2344.5,2343.3,2.32517739]
[1769972286162,2.37565568,2344.7,2343.3,2.53874739]
[1769972286361,2.37565568,2344.7,2343.4,2.32517739]
[1769972286663,2.37565568,2344.7,2343.6,2.32517739]
[1769972286961,0.00332062,2344.8,2343.6,2.32517739]
[1769972287356,2.37565568,2345.0,2343.9,2.31024469]
[1769972287559,2.37151322,2345.5,2344.1,2.31024469]
[1769972288463,2.37664324,2345.5,2344.1,2.31347091]
[1769972290263,2.37664324,2345.5,2344.3,2.31024469]
[1769972291160,2.59002324,2345.5,2344.1,2.31347091]
[1769972302672,2.37151322,2345.1,2344.1,0.00322622]
[1769972302878,2.58492322,2345.1,2344.1,0.00322622]
[1769972303180,2.37151322,2344.9,2344.1,0.00322622]
[1769972303379,0.21344,2344.8,2344.0,1.35195116]
[1769972303579,2.37151322,2344.7,2343.5,5.49324469]
[1769972303776,2.37151322,2344.7,2343.5,2.31024469]
[1769972303981,6.30868699,2344.9,2343.3,2.31024469]
[1769972303982,1.44340925,2344.5,2343.3,2.31024469]
[1769972304280,1.44340925,2344.7,2343.3,2.31024469]
[1769972304479,1.44340925,2344.7,2343.3,2.31547297]
[1769972305079,1.65681925,2345.1,2343.3,2.31547297]
[1769972305782,1.65681925,2345.1,2343.4,2.31024469]
[1769972306282,1.65681925,2345.1,2343.6,2.31024469]
[1769972307285,0.21341,2345.1,2343.6,2.31024469]
[1769972308378,1.41404369,2345.2,2343.6,2.52378469]
[1769972310283,1.41404369,2345.2,2343.8,2.31024469]
[1769972314287,1.39061219,2345.1,2343.8,2.31024469]
[1769972314886,1.60402219,2345.1,2343.8,2.31024469]
[1769972316087,7.91270918,2345.1,2343.8,2.31024469]
[1769972316286,1.40894997,2345.0,2343.8,2.31024469]
[1769972329705,6.30868699,2345.2,2344.2,2.49007059]
[1769972329900,0.00513002,2345.5,2344.4,2.49007059]
[1769972330496,1.40136995,2345.8,2344.6,2.49007059]
[1769972330699,1.40136995,2346.0,2344.6,2.49007059]
[1769972331605,1.40513003,2346.0,2344.6,2.49007059]
[1769972332505,1.40513003,2346.0,2344.8,2.49007059]
[1769972332705,1.40513003,2346.0,2345.0,2.49007059]
[1769972332905,1.40513003,2346.0,2345.0,2.49400458]
[1769972333203,1.40513003,2346.0,2344.5,2.49007059]
[1769972333204,1.37354573,2345.8,2344.5,2.49007059]
[1769972333413,2.504,2345.7,2344.4,2.49007059]
[1769972333607,1.36329464,2345.6,2344.4,2.49007059]
[1769972334306,1.36329464,2345.6,2344.4,2.49306951]
[1769972340708,2.504,2345.7,2344.4,2.49306951]
[1769972341510,1.36907171,2345.6,2344.4,2.49306951]
[1769972342111,2.504,2345.7,2344.4,2.49306951]
[1769972342309,6.30009883,2345.8,2344.5,0.21346]
[1769972342505,0.00376008,2346.0,2345.0,2.49007059]
[1769972342705,6.30009883,2347.3,2346.0,2.49007059]
[1769972342909,1.36907171,2347.7,2346.4,2.49007059]
[1769972343206,6.30009883,2348.2,2346.7,2.49007059]
[1769972343411,1.58211171,2349.2,2347.5,2.49007059]
[1769972343611,1.58516594,2349.2,2347.7,2.49007059]
[1769972343811,1.39031791,2349.1,2347.7,2.49007059]
[1769972346411,0.00305423,2349.2,2347.7,2.49007059]
[1769972347812,1.42330005,2349.2,2347.7,2.49007059]
[1769972348012,0.00305423,2349.2,2347.8,2.42393786]
[1769972349118,1.42024582,2349.8,2348.1,2.42393786]
[1769972350209,0.0041404,2349.8,2348.1,2.63707786]
[1769972351619,1.37300352,2350.6,2348.9,2.42393786]
[1769972351819,1.37300352,2350.5,2349.1,2.42393786]
[1769972352320,1.58592352,2350.5,2349.1,2.42393786]
[1769972352519,1.37300352,2350.3,2349.1,2.42393786]
[1769972352717,1.37689751,2350.3,2349.1,2.42393786]
[1769972353616,1.34243779,2350.3,2349.1,2.42393786]
[1769972353817,1.3385438,2350.2,2348.8,2.42393786]
[1769972354321,1.3385438,2350.0,2348.5,2.42393786]
[1769972354521,1.3385438,2349.7,2348.5,2.42393786]
[1769972355123,1.5515338,2349.8,2348.5,2.42393786]
[1769972356622,0.00389399,2350.3,2349.3,2.42393786]
[1769972356824,1.34866086,2350.3,2349.3,2.42771535]
[1769972357023,1.34866086,2350.3,2349.3,0.00377749]
[1769972358321,0.21683399,2350.3,2349.3,2.42771535]
[1769972358624,0.00389399,2350.3,2349.3,2.42771535]
[1769972359519,1.2648034,2350.3,2349.3,2.42771535]
[1769972359720,1.47386941,2350.0,2349.0,2.42393786]
[1769972359916,1.47011192,2349.8,2348.7,2.42393786]
[1769972360821,1.47011192,2349.8,2348.7,2.42938079]
[1769972362321,0.21683399,2350.3,2348.7,2.42938079]
[1769972363028,0.21683399,2350.3,2348.8,2.732]
[1769972363324,0.26783981,2350.7,2349.5,2.42393786]
[1769972363829,1.1877143,2350.6,2349.5,2.42393786]
[1769972364427,1.19236594,2350.6,2349.5,2.42393786]
[1769972366522,0.00465164,2350.6,2349.5,2.42393786]
[1769972367020,1.4449602,2350.6,2349.5,2.42393786]
[1769972367217,0.21756164,2350.6,2349.5,2.42393786]
[1769972367618,0.21286,2351.2,2349.6,2.42393786]
[1769972368223,1.20946745,2351.3,2349.6,2.42393786]
[1769972368426,1.42235745,2350.8,2349.6,2.42393786]
[1769972368627,1.42568977,2350.8,2349.6,2.42393786]
[1769972369626,1.44747643,2350.5,2349.6,2.42393786]
[1769972371029,0.21292,2350.5,2349.6,2.42393786]
[1769972372225,0.00333232,2350.8,2349.6,2.42393786]
[1769972372534,1.21314592,2351.4,2349.6,2.42393786]
[1769972372736,1.21314592,2351.3,2349.6,2.42393786]
[1769972373437,1.21414257,2351.3,2349.6,2.42393786]
[1769972374231,1.37160334,2350.7,2349.6,2.42393786]
[1769972374628,0.00099665,2351.3,2349.6,2.42393786]
[1769972374832,0.00099665,2351.3,2350.1,2.42393786]
[1769972375836,1.13381703,2351.3,2350.1,2.42393786]
[1769972376835,1.34666703,2351.3,2350.1,2.42393786]
[1769972377034,0.21384665,2351.3,2350.1,2.42393786]
[1769972377332,0.21279,2352.0,2350.6,2.44458385]
[1769972377539,0.21273,2352.6,2351.0,2.44458385]
[1769972377832,1.30054285,2352.6,2351.1,2.44458385]
[1769972378338,1.30054285,2352.6,2351.1,2.44950963]
[1769972378744,0.21274,2352.5,2351.1,2.44950963]
[1769972378946,1.30056285,2352.4,2351.1,2.44950963]
[1769972379944,1.05426484,2352.1,2351.1,0.00492578]
[1769972380938,1.05426484,2352.3,2351.1,0.00492578]
[1769972381246,1.05426484,2351.9,2351.1,0.00492578]
[1769972381441,1.28958302,2351.8,2351.1,0.00492578]
[1769972381740,0.21285,2351.3,2350.4,2.44458385]
[1769972382547,0.21584657,2351.3,2350.4,2.44996268]
[1769972383044,0.00299657,2351.3,2350.4,2.44996268]
[1769972383544,10.0188459,2352.2,2350.4,2.44996268]
[1769972383739,1.28100139,2352.7,2350.8,2.44458385]
[1769972384045,1.28100139,2352.7,2351.0,2.44458385]
[1769972384740,1.2829306,2352.7,2351.0,2.44458385]
[1769972385245,1.0702106,2352.7,2351.0,2.44458385]
[1769972386144,0.00192921,2352.7,2351.0,2.44458385]
[1769972387048,1.04102777,2352.7,2351.2,2.25819823]
[1769972387344,0.00192921,2352.7,2351.2,2.25819823]
[1769972391346,10.2305059,2353.4,2351.4,2.25819823]
[1769972391543,0.2126,2354.0,2352.3,2.25819823]
[1769972391742,1.21814155,2353.8,2352.5,2.25819823]
[1769972392047,2.62010429,2353.0,2351.4,2.25819823]
[1769972392247,2.497,2353.1,2351.4,2.25819823]
[1769972392447,1.21819155,2353.2,2351.4,2.2624073]
[1769972393950,1.0304723,2353.1,2351.4,2.2624073]
[1769972394150,3.65057659,2353.1,2351.4,2.2624073]
[1769972394346,0.21267,2353.2,2351.4,2.2624073]
[1769972394650,0.21267,2353.2,2351.6,2.25819823]
[1769972395046,5.28247172,2353.1,2351.8,2.25819823]
[1769972395443,4.25199942,2352.7,2351.8,2.25819823]
[1769972395644,1.05309541,2352.8,2351.5,2.25819823]
[1769972395845,4.25199942,2352.6,2351.5,2.25819823]
[1769972396050,4.25199942,2352.5,2351.5,2.25819823]
[1769972396450,4.25199942,2352.4,2351.5,2.25819823]
[1769972396752,4.25199942,2352.5,2351.5,2.25819823]
[1769972397156,4.25199942,2352.4,2351.5,2.25819823]
[1769972397348,4.25199942,2352.3,2351.5,2.25819823]
[1769972397748,1.26581541,2352.7,2351.5,2.25819823]
[1769972397749,4.25199942,2352.1,2351.5,2.25819823]
[1769972397945,4.25199942,2352.3,2351.5,2.25819823]
[1769972398349,4.25199942,2352.1,2351.5,2.25819823]
[1769972398549,4.25199942,2352.4,2351.5,2.25819823]
[1769972398954,4.25199942,2352.3,2351.5,2.25819823]
[1769972399153,4.25199942,2352.4,2351.5,2.25819823]
[1769972399453,4.25199942,2352.5,2351.5,2.25819823]
[1769972399851,4.25199942,2352.4,2351.5,2.25819823]
[1769972400149,4.46473942,2352.5,2351.5,2.25819823]
[1769972400351,4.25199942,2352.0,2351.4,0.00420907]
[1769972400553,1.07947088,2352.2,2351.4,0.00420907]
[1769972400748,4.25199942,2351.8,2351.4,0.00420907]
[1769972401349,4.25199942,2351.5,2350.5,2.25819823]
[1769972401555,5.53377515,2351.7,2350.5,2.25819823]
[1769972401750,0.21284,2351.4,2350.5,2.25819823]
[1769972401954,0.21285,2351.3,2350.5,2.25819823]
[1769972402155,0.21279,2351.9,2350.5,2.25819823]
[1769972402353,4.25199942,2351.8,2350.5,2.25819823]
[1769972402552,0.21281,2351.7,2350.5,2.26224937]
[1769972402752,4.46480942,2351.7,2350.5,2.26224937]
[1769972403047,4.25199942,2351.6,2350.5,2.26224937]
[1769972403254,4.00503942,2351.6,2350.5,2.26224937]
[1769972403553,0.21281,2351.7,2350.5,2.26224937]
[1769972404256,4.21784942,2351.7,2350.5,2.26224937]
[1769972404751,4.21785942,2351.6,2350.5,2.26224937]
[1769972405058,0.21283,2351.5,2350.5,2.26224937]
[1769972405355,4.21786942,2351.5,2350.5,2.26224937]
[1769972405751,0.21283,2351.5,2350.5,2.26224937]
[1769972405957,4.00503942,2351.3,2350.5,2.26224937]
[1769972406354,1.25046661,2351.5,2350.5,2.26224937]
[1769972406560,4.00503942,2351.2,2350.5,1.76498571]
[1769972407057,4.00503942,2351.0,2350.5,1.76498571]
[1769972407251,4.00503942,2351.2,2350.5,1.76498571]
[1769972407457,0.21281,2351.7,2350.5,1.76498571]
[1769972407660,4.00503942,2351.6,2350.5,1.76498571]
[1769972407953,5.54142274,2351.6,2350.5,1.76498571]
[1769972408152,0.21284,2351.4,2350.5,1.76498571]
[1769972408958,0.00420906,2351.9,2350.5,1.76498571]
[1769972409857,0.00420906,2351.9,2350.7,2.45219568]
[1769972410256,4.00503942,2351.7,2350.7,2.45219568]
[1769972410456,0.00420906,2351.9,2350.7,2.45219568]
[1769972412151,6.30058233,2352.5,2350.9,2.45219568]
[1769972412357,6.51331233,2352.6,2350.9,2.66507568]
[1769972412556,1.51775927,2352.9,2351.1,2.45219568]
[1769972412557,6.30058233,2352.9,2351.1,2.45219568]
[1769972412859,6.30058233,2352.9,2351.4,2.45219568]
[1769972413060,6.30058233,2353.0,2351.6,2.45219568]
[1769972413261,6.30058233,2353.1,2351.6,2.45219568]
[1769972413456,7.82340089,2353.2,2351.6,2.45219568]
[1769972413457,6.51326233,2353.2,2351.6,2.45219568]
[1769972413657,10.51830175,2353.2,2351.6,2.45219568]
[1769972414052,1.76802191,2353.1,2351.6,2.45219568]
[1769972414256,4.00503942,2352.8,2351.6,2.45219568]
[1769972414460,4.00503942,2353.1,2351.6,2.45219568]
[1769972414958,6.30058233,2353.3,2351.6,2.45219568]
[1769972415163,1.55534191,2353.0,2351.6,2.45219568]
[1769972415362,1.55534191,2353.0,2351.7,2.45219568]
[1769972415562,4.00503942,2353.0,2351.7,2.45219568]
[1769972415764,0.21269,2353.1,2351.7,2.45219568]
[1769972415965,6.327,2353.5,2351.8,0.2128]
[1769972416165,6.30058233,2354.0,2352.2,2.45219568]
[1769972416464,0.21258,2354.3,2352.5,2.66492568]
[1769972416665,4.00503942,2354.1,2352.7,2.45219568]
[1769972416861,4.00503942,2353.8,2352.7,2.45219568]
[1769972417064,4.21762942,2354.2,2352.7,2.45219568]
[1769972417259,1.58671226,2354.5,2352.7,2.45219568]
[1769972417461,5.80431168,2354.5,2352.7,2.45219568]
[1769972417661,4.21759942,2354.5,2352.7,2.66491568]
[1769972417966,5.79913872,2354.4,2352.7,2.66491568]
[1769972418166,1.7940993,2354.4,2352.7,2.66491568]
[1769972418464,5.79913872,2354.4,2352.7,2.66491568]
[1769972418859,8.79658233,2354.7,2352.7,2.45219568]
[1769972418860,5.58656872,2354.2,2352.7,2.45219568]
[1769972419165,0.21257,2354.3,2352.7,2.45219568]
[1769972419364,6.30058233,2354.8,2353.0,2.45219568]
[1769972419664,0.21252,2354.9,2353.0,2.45219568]
[1769972419964,0.22196456,2355.7,2353.7,0.21263]
[1769972420163,0.22196456,2355.7,2353.9,2.66480568]
[1769972420364,0.22196456,2355.7,2353.9,2.66895836]
[1769972420665,0.22196456,2355.7,2354.1,2.45219568]
[1769972421064,5.83043788,2355.7,2354.1,2.45219568]
[1769972421272,4.00503942,2355.4,2354.3,2.45219568]
[1769972421570,2.03784846,2355.7,2354.3,2.45219568]
[1769972421760,4.43945398,2355.7,2354.3,2.45219568]
[1769972421959,1.77108991,2355.6,2354.3,2.45219568]
[1769972422264,4.00503942,2354.8,2354.0,2.45219568]
[1769972422465,5.56366933,2355.2,2354.0,2.45219568]
[1769972422662,3.18797813,2357.2,2354.9,2.60516521]
[1769972422865,2.48980362,2358.0,2355.7,0.21244]
[1769972423066,2.48980362,2357.7,2355.8,4.49272165]
[1769972423267,2.48980362,2357.3,2355.9,3.15872165]
[1769972423570,2.48980362,2357.2,2355.8,3.829]
[1769972423865,2.48980362,2356.7,2355.7,0.00434552]
[1769972424168,2.48980362,2356.5,2355.7,0.00434552]
[1769972424370,8.4904,2356.4,2355.7,0.00434552]
[1769972424672,8.4904,2356.1,2355.7,0.00434552]
[1769972425067,14.29527268,2356.0,2355.7,0.00434552]
[1769972425365,14.29527268,2356.0,2355.0,0.66403719]
[1769972425366,14.29527268,2356.4,2355.1,0.66402733]
[1769972425567,2.48980362,2356.8,2355.2,0.66402733]
[1769972425764,2.48980362,2356.8,2355.3,0.66402733]
[1769972425765,14.29527268,2356.7,2355.3,0.66402733]
[1769972425960,2.48980362,2356.6,2355.0,0.6639922]
[1769972426272,2.48980362,2356.5,2355.0,0.66730744]
[1769972426570,14.29527268,2356.5,2355.0,0.00328549]
[1769972426864,2.48980362,2356.4,2355.0,0.66733003]
[1769972427066,2.48980362,2356.4,2355.0,0.00328549]
[1769972427368,16.7850763,2356.3,2355.1,0.07612757]
[1769972427569,2.48980362,2356.3,2355.1,0.07612757]
[1769972427769,14.29527268,2356.2,2355.1,0.07612757]
[1769972427968,16.74701251,2356.2,2355.1,0.07612757]
[1769972428264,2.45173983,2355.8,2355.0,0.00328549]
[1769972428470,2.45173983,2355.4,2354.0,0.07612757]
[1769972428769,2.45173983,2355.3,2354.0,0.07612757]
[1769972429070,2.45173983,2355.2,2354.0,0.07612757]
[1769972429369,7.1004,2355.1,2354.0,0.08141784]
[1769972429564,16.75103529,2355.1,2354.0,0.08141784]
[1769972430263,2.45576261,2354.8,2354.0,0.00529027]
[1769972430473,2.45895374,2354.8,2353.4,0.06808201]
[1769972430671,2.45576261,2354.4,2353.1,0.06808201]
[1769972430874,16.75103529,2354.7,2353.1,0.06808201]
[1769972431167,14.29527268,2354.6,2353.1,0.06808201]
[1769972431472,2.45999798,2354.5,2353.1,0.07183393]
[1769972431765,2.45999798,2354.5,2353.2,0.05961128]
[1769972431962,2.45999798,2354.3,2353.2,0.05961128]
[1769972432363,2.45999798,2354.6,2353.2,0.05961128]
[1769972432562,16.75527066,2354.6,2353.2,0.05961128]
[1769972433674,2.46268139,2354.5,2353.2,0.05961128]
[1769972433873,2.46268139,2354.3,2353.2,0.05961128]
[1769972434574,9.56308139,2354.3,2353.2,0.05961128]
[1769972434973,14.29527268,2354.2,2353.2,0.05961128]
[1769972435176,2.46268139,2354.7,2353.2,0.05961128]
[1769972435367,2.46268139,2354.6,2353.2,0.05961128]